bitfinex-derivatives/quotes_BTCF0:USTF0_20260207
["timestamp","ask_amount","ask_price","bid_price","bid_amount"]
[1770449509211,0.014709,68028.0,67994.0,0.56988516]
[1770449509415,0.59681207,68036.0,67998.0,0.014716]
[1770449509617,0.59681207,68036.0,67994.0,0.58460216]
[1770449509618,0.014709,68032.0,67994.0,0.58460216]
[1770449509818,0.58210407,68025.0,67982.0,0.56988516]
[1770449510123,0.58210407,68036.0,67994.0,0.56988516]
[1770449510323,0.014709,68029.0,67996.0,0.56988516]
[1770449511023,0.014711,68021.0,67984.0,0.56988516]
[1770449511226,0.59681507,68021.0,67984.0,0.56988516]
[1770449511416,0.59681607,68018.0,67984.0,0.56988516]
[1770449511618,0.014715,68004.0,67975.0,0.28623309]
[1770449511818,0.014715,68002.0,67973.0,0.56988516]
[1770449512124,0.58210407,68015.0,67973.0,0.56988516]
[1770449512423,0.59681807,68007.0,67973.0,0.56988516]
[1770449512820,0.58210407,68007.0,67974.0,0.014721]
[1770449513726,0.014714,68006.0,67973.0,0.56988516]
[1770449513924,0.014714,68006.0,67975.0,0.001]
[1770449514327,0.58210407,68007.0,67973.0,0.54460616]
[1770449514627,0.58210407,68007.0,67976.0,0.01472]
[1770449514825,0.014705,68049.0,67982.0,0.014719]
[1770449514826,0.014712,68016.0,67982.0,0.014719]
[1770449515027,0.58210407,68019.0,67985.0,0.014719]
[1770449515230,0.58210407,68019.0,67988.0,0.014718]
[1770449515817,0.58210407,68019.0,67985.0,0.56988516]
[1770449516025,0.014713,68013.0,67979.0,0.01472]
[1770449516229,0.58210407,68016.0,67982.0,0.014719]
[1770449516928,0.58210407,68012.0,67978.0,0.01472]
[1770449517118,0.58210407,68007.0,67976.0,0.56988516]
[1770449517521,0.01800032,68000.0,67976.0,0.56988516]
[1770449517825,0.58210407,68000.0,67970.0,0.28623309]
[1770449518023,0.014717,67994.0,67962.0,0.56988516]
[1770449518221,0.58210407,68000.0,67966.0,0.014723]
[1770449518818,0.59682007,68000.0,67966.0,0.014723]
[1770449519123,0.58210407,68000.0,67968.0,0.014722]
[1770449519525,0.014711,68021.0,67967.0,0.56988516]
[1770449519526,0.58210407,68012.0,67967.0,0.56988516]
[1770449519722,0.014713,68011.0,67975.0,0.014721]
[1770449520031,0.59681907,68001.0,67970.0,0.56988516]
[1770449520229,0.58210407,68001.0,67965.0,0.28623309]
[1770449520424,0.58210407,68001.0,67962.0,0.014723]
[1770449520824,0.58210407,68001.0,67960.0,1.23791309]
[1770449520825,0.58210407,67994.0,67960.0,0.95168]
[1770449521025,0.014717,67991.0,67960.0,0.95168]
[1770449521327,0.014715,68001.0,67961.0,0.56988516]
[1770449521528,0.58210407,68006.0,67966.0,0.56988516]
[1770449521729,0.58210407,68006.0,67962.0,0.28623309]
[1770449521730,0.58210407,68029.0,67981.0,0.014719]
[1770449521928,0.014712,68015.0,67981.0,0.52888516]
[1770449522119,0.58210407,68019.0,67983.0,0.56988516]
[1770449522319,0.58210407,68019.0,67984.0,0.56988516]
[1770449522522,0.014714,68008.0,67974.0,0.28623309]
[1770449522733,0.59681807,68008.0,67971.0,0.966562]
[1770449522925,0.014709,68032.0,67971.0,0.966562]
[1770449522926,0.58210407,68005.0,67971.0,0.95184]
[1770449523118,0.58210407,68001.0,67971.0,0.95184]
[1770449523324,0.014718,67988.0,67971.0,0.95184]
[1770449523524,0.014721,67977.0,67949.0,0.43488263]
[1770449523830,0.014721,67977.0,67946.0,0.56988516]
[1770449523831,0.58210407,67980.0,67946.0,0.56988516]
[1770449524128,0.58210407,67978.0,67947.0,0.014727]
[1770449524323,0.58210407,67978.0,67946.0,0.56988516]
[1770449524525,0.58210407,67978.0,67922.0,0.43664796]
[1770449524526,0.59682807,67963.0,67928.0,0.56988516]
[1770449524718,0.58210407,67963.0,67928.0,0.56988516]
[1770449524917,0.014724,67960.0,67921.0,0.014732]
[1770449525126,0.59682807,67960.0,67924.0,0.014732]
[1770449525332,0.58210407,67960.0,67916.0,0.56988516]
[1770449525728,0.58210407,67960.0,67923.0,0.5649129]
[1770449525927,0.014726,67953.0,67923.0,0.5649129]
[1770449526130,0.57867887,67956.0,67923.0,0.5649129]
[1770449526430,0.014725,67955.0,67923.0,0.5649129]
[1770449526732,0.014726,67952.0,67923.0,0.5649129]
[1770449526930,0.014727,67949.0,67909.0,0.5649129]
[1770449527130,0.57867887,67950.0,67909.0,0.5649129]
[1770449527629,0.014726,67950.0,67911.0,0.5649129]
[1770449527832,0.014729,67940.0,67923.0,0.001]
[1770449528022,0.014728,67944.0,67923.0,0.001]
[1770449528427,0.014728,67941.0,67911.0,0.5649129]
[1770449528630,0.57867887,67952.0,67911.0,0.5649129]
[1770449529026,0.01473,67934.0,67909.0,0.001]
[1770449529225,0.01473,67935.0,67909.0,0.001]
[1770449529525,0.56779754,67938.0,67909.0,0.001]
[1770449529526,0.014731,67929.0,67909.0,0.001]
[1770449529727,0.01473,67933.0,67909.0,0.001]
[1770449529931,0.58252654,67938.0,67907.0,1.47679661]
[1770449530230,0.01473,67935.0,67907.0,0.94684]
[1770449530429,0.014731,67929.0,67896.0,0.9522]
[1770449530627,0.58252954,67923.0,67894.0,0.0002]
[1770449530927,0.014734,67917.0,67894.0,0.0002]
[1770449531129,0.58253154,67917.0,67894.0,0.0002]
[1770449531434,0.56779754,67928.0,67895.0,0.52995661]
[1770449531620,0.56779754,67928.0,67911.0,0.0002]
[1770449532523,0.56779754,67928.0,67895.0,0.52995661]
[1770449532524,0.01800032,67912.0,67895.0,0.52995661]
[1770449533028,0.56779754,67928.0,67895.0,0.52995661]
[1770449533229,0.014729,67936.0,67899.0,0.54469361]
[1770449533533,0.014726,67953.0,67916.0,0.52995661]
[1770449534127,0.56779754,67954.0,67917.0,0.014733]
[1770449534326,0.58252354,67953.0,67916.0,0.52995661]
[1770449534528,0.56779754,67953.0,67921.0,0.014732]
[1770449534731,0.56779754,67953.0,67917.0,0.014733]
[1770449534930,0.56779754,67953.0,67918.0,0.52995661]
[1770449535731,0.014719,67983.0,67919.0,0.52995661]
[1770449535932,0.014719,67983.0,67912.0,0.9524]
[1770449535933,0.56779754,67967.0,67914.0,0.52995661]
[1770449536237,0.014719,67983.0,67914.0,0.52995661]
[1770449536238,0.58252154,67960.0,67922.0,0.014732]
[1770449536434,0.56779754,67949.0,67914.0,0.52995661]
[1770449536630,0.014728,67943.0,67918.0,0.001]
[1770449536936,0.56779754,67942.0,67918.0,0.001]
[1770449537333,0.56779754,67954.0,67918.0,0.014733]
[1770449537534,0.014726,67953.0,67918.0,0.52995661]
[1770449537724,0.58252354,67953.0,67914.0,0.014734]
[1770449537931,0.56779754,67944.0,67906.0,0.52995661]
[1770449538231,0.56779754,67940.0,67906.0,0.52995661]
[1770449538932,0.014723,67965.0,67906.0,0.52995661]
[1770449538933,0.56779754,67938.0,67906.0,0.52995661]
[1770449539334,0.56779754,67938.0,67906.0,0.54469261]
[1770449539637,0.56779754,67938.0,67909.0,0.014735]
[1770449539939,0.56779754,67938.0,67907.0,0.014735]
[1770449540837,0.56779754,67936.0,67900.0,0.95252]
[1770449541332,0.56779754,67930.0,67900.0,0.95252]
[1770449541534,0.56779754,67930.0,67895.0,0.54469461]
[1770449541535,0.56779754,67928.0,67895.0,0.52995661]
[1770449541736,0.01473,67935.0,67899.0,0.54469361]
[1770449542038,0.56779754,67929.0,67891.0,0.014739]
[1770449542424,0.58252854,67926.0,67889.0,1.48255661]
[1770449542835,0.58252954,67922.0,67889.0,1.48255661]
[1770449543828,0.014732,67926.0,67890.0,0.52995661]
[1770449544035,0.014731,67927.0,67890.0,0.54469561]
[1770449544237,0.56779754,67929.0,67890.0,0.52995661]
[1770449544435,0.014732,67924.0,67890.0,0.52995661]
[1770449544632,0.56779754,67941.0,67898.0,0.52995661]
[1770449545131,0.014731,67929.0,67898.0,0.52995661]
[1770449545331,0.014731,67929.0,67898.0,0.48895661]
[1770449545533,0.56779754,67930.0,67898.0,0.48895661]
[1770449545939,0.014729,67937.0,67899.0,0.54469361]
[1770449546335,0.56779754,67936.0,67899.0,0.52995661]
[1770449546536,0.56779754,67927.0,67889.0,0.9526]
[1770449546840,0.56779754,67923.0,67889.0,1.48255661]
[1770449547242,0.014732,67922.0,67889.0,1.48255661]
[1770449547439,0.01800032,67919.0,67889.0,1.48255661]
[1770449547635,0.56779754,67919.0,67889.0,1.48255661]
[1770449547840,0.58253154,67915.0,67889.0,0.9536]
[1770449548030,0.56779754,67911.0,67880.0,0.03870242]
[1770449548235,0.56779754,67911.0,67862.0,0.014745]
[1770449548236,0.56779754,67908.0,67868.0,0.54470061]
[1770449548437,0.014737,67903.0,67868.0,0.54470061]
[1770449548836,0.014737,67900.0,67868.0,0.52995661]
[1770449549032,0.56779754,67895.0,67857.0,1.48275661]
[1770449549232,0.01474,67888.0,67857.0,1.48275661]
[1770449549439,0.56779754,67882.0,67846.0,1.48275661]
[1770449549644,0.56779754,67882.0,67847.0,0.014748]
[1770449550036,0.56779754,67882.0,67848.0,0.014748]
[1770449550238,0.56779754,67882.0,67852.0,0.014747]
[1770449550437,0.58253854,67882.0,67846.0,1.48275661]
[1770449550634,0.56779754,67878.0,67839.0,0.00018723]
[1770449550839,0.58253954,67876.0,67836.0,0.54470761]
[1770449551238,0.014737,67901.0,67836.0,0.52995661]
[1770449551239,0.58254054,67872.0,67836.0,0.52995661]
[1770449551439,0.014743,67874.0,67832.0,0.52995661]
[1770449551645,0.014743,67874.0,67831.0,0.95288]
[1770449551646,0.56779754,67889.0,67846.0,0.52995661]
[1770449551849,0.58253754,67887.0,67846.0,0.54470561]
[1770449552347,0.58253754,67887.0,67840.0,0.15228881]
[1770449552348,0.56779754,67887.0,67851.0,0.52995661]
[1770449552643,0.56779754,67898.0,67863.0,0.52995661]
[1770449552847,0.56779754,67891.0,67851.0,0.52995661]
[1770449553244,0.56779754,67902.0,67863.0,0.51470161]
[1770449553443,0.58253454,67901.0,67867.0,0.014744]
[1770449553644,0.138659,67927.0,67838.0,0.52995661]
[1770449553645,0.56779754,67880.0,67838.0,0.52995661]
[1770449553847,0.56779754,67874.0,67831.0,0.52995661]
[1770449554152,0.56779754,67874.0,67836.0,0.52995661]
[1770449554338,0.56779754,67874.0,67840.0,0.52995661]
[1770449555052,0.56779754,67874.0,67869.0,0.0002]
[1770449555347,0.56779754,67874.0,67829.0,0.54470861]
[1770449555647,0.58254354,67860.0,67829.0,0.52995661]
[1770449555846,0.57948047,67854.0,67821.0,0.95316]
[1770449556149,0.014747,67853.0,67819.0,0.967995]
[1770449556346,0.56473347,67852.0,67819.0,0.014755]
[1770449556548,0.56473347,67852.0,67817.0,0.53942911]
[1770449557044,0.56473347,67852.0,67818.0,0.014755]
[1770449557245,0.56473347,67852.0,67817.0,0.53942911]
[1770449557753,0.014748,67851.0,67817.0,0.53942911]
[1770449557950,0.56473347,67851.0,67817.0,0.54042911]
[1770449558345,0.56473347,67851.0,67818.0,0.014755]
[1770449558753,0.56473347,67851.0,67819.0,0.53942911]
[1770449559444,0.56473347,67851.0,67821.0,0.0002]
[1770449559644,0.56473347,67851.0,67816.0,0.014755]
[1770449560844,0.56473347,67851.0,67816.0,0.55418411]
[1770449561044,0.56473347,67847.0,67810.0,0.014756]
[1770449561247,0.56473347,67847.0,67817.0,0.014755]
[1770449561446,0.56473347,67847.0,67811.0,0.53942911]
[1770449561647,0.57948247,67847.0,67812.0,0.95356]
[1770449561842,0.56473347,67854.0,67817.0,0.014755]
[1770449562148,0.014743,67873.0,67816.0,0.53942911]
[1770449562149,0.57948047,67853.0,67816.0,0.51318411]
[1770449562354,0.01800032,67843.0,67816.0,0.51318411]
[1770449562652,0.56473347,67847.0,67816.0,0.51318411]
[1770449562852,0.57948247,67847.0,67816.0,0.001]
[1770449563153,0.014749,67844.0,67816.0,0.001]
[1770449563344,0.56473347,67844.0,67816.0,0.001]
[1770449563545,0.56473347,67844.0,67808.0,0.95368]
[1770449563856,0.56473347,67844.0,67808.0,1.49310911]
[1770449564048,0.56473347,67844.0,67815.0,0.0002]
[1770449564249,0.56473347,67844.0,67782.0,0.43679996]
[1770449564250,0.56473347,67826.0,67800.0,0.0002]
[1770449564448,0.56473347,67832.0,67800.0,0.0002]
[1770449565258,0.56473347,67832.0,67796.0,0.55418911]
[1770449565259,0.56473347,67832.0,67799.0,0.014759]
[1770449565450,0.57948647,67828.0,67791.0,0.0002]
[1770449565653,0.56473347,67821.0,67791.0,0.0002]
[1770449565852,0.56473347,67814.0,67791.0,0.0002]
[1770449566252,0.014751,67836.0,67774.0,0.95376]
[1770449566253,0.56473347,67812.0,67784.0,0.0002]
[1770449566552,0.56473347,67811.0,67784.0,0.0002]
[1770449566748,0.56473347,67809.0,67778.0,0.0002]
[1770449566952,0.56473347,67805.0,67778.0,0.0002]
[1770449567152,0.56473347,67803.0,67778.0,0.0002]
[1770449567455,0.56473347,67803.0,67762.0,0.53942911]
[1770449567456,0.56473347,67801.0,67791.0,0.001]
[1770449567660,0.56473347,67812.0,67791.0,0.001]
[1770449567957,0.56473347,67810.0,67791.0,0.001]
[1770449568353,0.56473347,67826.0,67791.0,0.001]
[1770449568557,0.56473347,67826.0,67793.0,0.01476]
[1770449568755,0.56473347,67826.0,67794.0,0.53942911]
[1770449569255,0.56473347,67826.0,67797.0,0.014759]
[1770449569446,0.56473347,67826.0,67801.0,0.014759]
[1770449569850,0.56473347,67826.0,67794.0,0.51338811]
[1770449570055,0.56473347,67826.0,67796.0,0.01476]
[1770449570251,0.56473347,67826.0,67799.0,0.014759]
[1770449571059,0.56473347,67826.0,67802.0,0.014758]
[1770449571261,0.56473347,67839.0,67806.0,0.014757]
[1770449571557,0.56473347,67839.0,67804.0,0.53942911]
[1770449571764,0.56473347,67839.0,67806.0,0.0002]
[1770449571954,0.56473347,67837.0,67806.0,0.0002]
[1770449572255,0.56473347,67835.0,67807.0,0.014757]
[1770449572459,0.56473347,67835.0,67810.0,0.014756]
[1770449572859,0.56473347,67835.0,67806.0,0.014757]
[1770449573059,0.56473347,67835.0,67809.0,0.014757]
[1770449573751,0.00012614,67834.0,67801.0,0.014758]
[1770449573951,0.57961161,67833.0,67800.0,1.49350911]
[1770449574154,0.014752,67832.0,67807.0,0.0002]
[1770449574352,0.56473347,67833.0,67807.0,0.0002]
[1770449574656,0.56473347,67842.0,67808.0,0.014757]
[1770449574864,0.56473347,67841.0,67808.0,0.014757]
[1770449575357,0.56473347,67841.0,67811.0,0.014756]
[1770449575861,0.56473347,67867.0,67827.0,0.53942911]
[1770449576071,0.56473347,67862.0,67827.0,0.014753]
[1770449576256,0.56473347,67861.0,67827.0,0.014753]
[1770449576455,0.56473347,67861.0,67825.0,0.53942911]
[1770449576764,0.56473347,67872.0,67832.0,0.53942911]
[1770449576958,0.56473347,67866.0,67833.0,0.014751]
[1770449577354,0.56473347,67877.0,67837.0,0.53942911]
[1770449577559,0.56473347,67877.0,67842.0,0.53942911]
[1770449578063,0.56473347,67873.0,67838.0,0.01475]
[1770449578465,0.56473347,67862.0,67823.0,0.30549729]
[1770449578767,0.014746,67861.0,67825.0,0.001]
[1770449578967,0.56473347,67860.0,67826.0,0.014753]
[1770449579265,0.56473347,67860.0,67825.0,0.015753]
[1770449579657,0.014741,67883.0,67825.0,0.015753]
[1770449579658,0.56473347,67856.0,67825.0,0.001]
[1770449579862,0.56473347,67856.0,67828.0,0.014753]
[1770449580271,0.56473347,67867.0,67838.0,0.01475]
[1770449580469,0.56473347,67867.0,67823.0,0.001]
[1770449580470,0.56473347,67867.0,67831.0,0.53942911]
[1770449580680,0.57947747,67867.0,67831.0,0.53942911]
[1770449580973,0.56473347,67867.0,67834.0,0.014751]
[1770449581180,0.56473347,67867.0,67835.0,0.53942911]
[1770449581379,0.56473347,67879.0,67849.0,0.014748]
[1770449581586,0.56473347,67879.0,67847.0,0.014749]
[1770449581767,0.56473347,67873.0,67839.0,0.95408]
[1770449582780,0.56473347,67873.0,67847.0,0.001]
[1770449583178,0.088429,67897.0,67829.0,0.0002]
[1770449583179,0.56473347,67866.0,67829.0,0.0002]
[1770449583482,0.56473347,67858.0,67829.0,0.0002]
[1770449583881,0.56473347,67858.0,67825.0,0.968793]
[1770449584075,0.56473347,67858.0,67825.0,0.95404]
[1770449584280,0.56473347,67858.0,67828.0,0.014753]
[1770449584473,0.56473347,67858.0,67831.0,0.014752]
[1770449584682,0.56473347,67869.0,67832.0,0.55418111]
[1770449584879,0.56473347,67869.0,67835.0,0.014751]
[1770449585275,0.56473347,67869.0,67838.0,0.01475]
[1770449585680,0.56473347,67869.0,67834.0,0.014751]
[1770449585883,0.56473347,67869.0,67832.0,0.53942911]
[1770449586086,0.01474,67889.0,67829.0,0.001]
[1770449586087,0.56856143,67865.0,67829.0,0.014752]
[1770449586383,0.56856143,67855.0,67825.0,0.95404]
[1770449586576,0.56856143,67845.0,67821.0,0.0002]
[1770449586776,0.014745,67862.0,67821.0,0.0002]
[1770449586777,0.01475,67842.0,67821.0,0.0002]
[1770449586976,0.56856143,67841.0,67808.0,0.954]
[1770449587373,0.014751,67835.0,67808.0,0.954]
[1770449587582,0.014747,67854.0,67803.0,0.0002]
[1770449587583,0.014752,67831.0,67803.0,0.0002]
[1770449587783,0.58331343,67832.0,67803.0,0.0002]
[1770449588182,0.56856143,67832.0,67803.0,0.0002]
[1770449588378,0.58331443,67827.0,67803.0,0.0002]
[1770449588580,0.58331443,67827.0,67793.0,0.954]
[1770449588984,0.56856143,67827.0,67795.0,0.01476]
[1770449589180,0.55611101,67839.0,67799.0,0.57443499]
[1770449589377,0.55611101,67839.0,67804.0,0.57443499]
[1770449589578,0.55611101,67839.0,67804.0,0.58919299]
[1770449590588,0.55611101,67837.0,67804.0,0.57443499]
[1770449590889,0.55611101,67833.0,67798.0,8.23e-06]
[1770449591685,0.55611101,67829.0,67798.0,8.23e-06]
[1770449591881,0.57086401,67825.0,67798.0,8.23e-06]
[1770449592183,0.57086501,67822.0,67798.0,8.23e-06]
[1770449592684,0.55611101,67822.0,67798.0,8.23e-06]
[1770449592889,0.01591473,67815.0,67798.0,8.23e-06]
[1770449593084,0.55611101,67822.0,67798.0,8.23e-06]
[1770449594189,0.55611101,67822.0,67793.0,0.91320823]
[1770449594490,0.57086501,67822.0,67793.0,0.91320823]
[1770449594685,0.014756,67812.0,67793.0,0.91320823]
[1770449594885,0.014753,67829.0,67793.0,0.91320823]
[1770449594886,0.55611101,67811.0,67793.0,0.91320823]
[1770449595186,0.55611101,67811.0,67798.0,0.001]
[1770449595383,0.55611101,67811.0,67777.0,0.57443499]
[1770449595384,0.55611101,67811.0,67783.0,0.0002]
[1770449595583,0.55611101,67809.0,67783.0,0.0002]
[1770449596287,0.55611101,67807.0,67783.0,0.0002]
[1770449596590,0.55611101,67807.0,67777.0,0.57443499]
[1770449596785,0.014752,67830.0,67775.0,0.95416]
[1770449596786,0.55611101,67805.0,67775.0,0.95416]
[1770449597683,0.55611101,67805.0,67777.0,0.0002]
[1770449597882,0.55611101,67803.0,67777.0,0.0002]
[1770449598293,0.014754,67822.0,67777.0,0.0002]
[1770449598294,0.57087001,67798.0,67777.0,0.0002]
[1770449598684,0.55611101,67798.0,67765.0,0.0002]
[1770449598987,0.014759,67797.0,67765.0,0.0002]
[1770449599193,0.014754,67822.0,67765.0,0.0002]
[1770449599194,0.55611101,67796.0,67765.0,0.0002]
[1770449599493,0.014758,67805.0,67770.0,0.57443499]
[1770449599682,0.57086901,67802.0,67770.0,0.57443499]
[1770449599880,0.57086901,67802.0,67771.0,0.0002]
[1770449600086,0.014754,67823.0,67783.0,0.014762]
[1770449600295,0.55611101,67821.0,67784.0,0.57443499]
[1770449600682,0.55611101,67821.0,67785.0,0.014762]
[1770449600886,0.55611101,67821.0,67784.0,0.57443499]
[1770449601193,0.55611101,67821.0,67786.0,0.57463499]
[1770449601787,0.55611101,67813.0,67786.0,0.0002]
[1770449601987,0.55611101,67813.0,67782.0,0.91356]
[1770449602396,0.55611101,67813.0,67782.0,0.91376]
[1770449602792,0.55611101,67813.0,67782.0,0.928523]
[1770449602991,0.55611101,67813.0,67782.0,0.91376]
[1770449603387,0.014754,67822.0,67787.0,0.014761]
[1770449603589,0.014754,67822.0,67768.0,0.014766]
[1770449603590,0.55611101,67818.0,67757.0,0.29227434]
[1770449603889,0.55611101,67784.0,67752.0,0.57443499]
[1770449604094,0.55611101,67778.0,67740.0,0.57443499]
[1770449604695,0.014764,67777.0,67740.0,0.58920699]
[1770449604993,0.55611101,67767.0,67739.0,0.0002]
[1770449605391,0.55611101,67761.0,67739.0,0.0002]
[1770449605595,0.57087901,67757.0,67739.0,0.0002]
[1770449605797,0.57087901,67757.0,67740.0,0.001]
[1770449606001,0.55611101,67757.0,67740.0,0.001]
[1770449606388,0.55611101,67757.0,67714.0,0.0002]
[1770449606703,0.57087801,67761.0,67722.0,0.58921099]
[1770449606993,0.55611101,67749.0,67718.0,0.01447589]
[1770449607194,0.01591473,67742.0,67718.0,0.58891088]
[1770449607396,0.55611101,67752.0,67720.0,0.014776]
[1770449607700,0.13594213,67752.0,67718.0,0.58891088]
[1770449607892,0.55611101,67764.0,67718.0,0.58891088]
[1770449608091,0.55611101,67760.0,67724.0,0.014775]
[1770449608495,0.55611101,67758.0,67720.0,0.014776]
[1770449608698,0.55611101,67756.0,67723.0,0.014775]
[1770449608992,0.55611101,67756.0,67718.0,0.60468788]
[1770449609190,0.55611101,67756.0,67724.0,0.014775]
[1770449609394,0.55611101,67756.0,67724.0,0.58920999]
[1770449609794,0.55611101,67756.0,67724.0,0.57443499]
[1770449609990,0.55611101,67756.0,67724.0,0.58920999]
[1770449610391,0.55611101,67756.0,67727.0,0.014775]
[1770449610594,0.55611101,67756.0,67730.0,0.014774]
[1770449610796,0.13753589,67764.0,67730.0,0.57443499]
[1770449610990,0.55611101,67764.0,67730.0,0.57443499]
[1770449611195,0.55611101,67764.0,67733.0,0.014773]
[1770449611901,0.55611101,67764.0,67730.0,0.57443499]
[1770449612796,0.55611101,67764.0,67733.0,0.58920799]
[1770449613202,0.55611101,67764.0,67734.0,0.95496]
[1770449613394,0.55611101,67764.0,67731.0,0.014774]
[1770449613902,0.55611101,67764.0,67720.0,0.57443499]
[1770449613903,0.55611101,67764.0,67734.0,0.014773]
[1770449614494,0.55611101,67757.0,67726.0,0.95496]
[1770449615001,0.55611101,67757.0,67726.0,1.52939499]
[1770449615196,0.6895059,67757.0,67727.0,0.57443499]
[1770449615398,0.55611101,67748.0,67718.0,0.01167589]
[1770449616101,0.55611101,67748.0,67718.0,0.01147589]
[1770449616497,0.53820298,67738.0,67700.0,0.00016122]
[1770449616691,0.53820298,67738.0,67704.0,0.01478]
[1770449616892,0.53820298,67738.0,67703.0,0.01478]
[1770449617096,0.53820298,67738.0,67706.0,0.014779]
[1770449617503,0.53820298,67738.0,67702.0,0.5113207]
[1770449617797,0.53820298,67738.0,67704.0,0.001]
[1770449618199,0.67293549,67738.0,67704.0,0.001]
[1770449618402,0.55297598,67737.0,67704.0,0.001]
[1770449618600,0.53820298,67737.0,67704.0,0.001]
[1770449618899,0.014773,67736.0,67704.0,0.001]
[1770449619101,0.53820298,67730.0,67704.0,0.001]
[1770449619296,0.53820298,67721.0,67686.0,0.014783]
[1770449619497,0.53820298,67721.0,67692.0,0.014782]
[1770449619901,0.53820298,67732.0,67690.0,0.5375417]
[1770449620100,0.53820298,67732.0,67695.0,0.5375417]
[1770449620293,0.53820298,67732.0,67699.0,0.014781]
[1770449620998,0.53820298,67732.0,67699.0,0.5375417]
[1770449621402,0.53820298,67732.0,67700.0,0.5523217]
[1770449621799,0.53820298,67732.0,67703.0,0.01478]
[1770449622000,0.53820298,67732.0,67700.0,0.5375417]
[1770449622306,0.53820298,67732.0,67701.0,0.95532]
[1770449622605,0.53820298,67732.0,67702.0,0.01478]
[1770449622797,0.53820298,67732.0,67702.0,0.5375417]
[1770449623004,0.53820298,67730.0,67696.0,0.014781]
[1770449623694,0.53820298,67730.0,67701.0,0.01478]
[1770449623899,0.53820298,67730.0,67700.0,0.01478]
[1770449624100,0.53820298,67730.0,67702.0,0.95636]
[1770449624301,0.53820298,67730.0,67703.0,0.9554]
[1770449624706,0.53820298,67730.0,67703.0,0.97018]
[1770449625299,0.53820298,67730.0,67703.0,0.95418]
[1770449625707,0.53820298,67730.0,67704.0,0.01478]
[1770449625908,0.53820298,67730.0,67702.0,0.95544]
[1770449626304,0.53820298,67730.0,67703.0,0.01478]
[1770449627199,0.53820298,67730.0,67699.0,0.014781]
[1770449627402,0.53820298,67730.0,67700.0,0.95548]
[1770449627799,0.53820298,67730.0,67687.0,0.5375417]
[1770449628000,0.53820298,67730.0,67699.0,0.014781]
[1770449628213,0.53820298,67730.0,67699.0,0.5375417]
[1770449628909,0.53820298,67722.0,67686.0,0.014783]
[1770449629317,0.53820298,67722.0,67693.0,0.014782]
[1770449629612,0.53820298,67722.0,67690.0,0.5375417]
[1770449629803,0.53820298,67722.0,67693.0,0.014782]
[1770449630003,0.53820298,67722.0,67692.0,0.5375417]
[1770449630409,0.66708528,67722.0,67692.0,0.5523237]
[1770449631416,0.1288823,67722.0,67696.0,0.5523227]
[1770449631714,0.53820298,67732.0,67696.0,0.5523227]
[1770449631911,0.53820298,67728.0,67696.0,0.5375417]
[1770449632412,0.53820298,67726.0,67696.0,0.5375417]
[1770449632819,0.53820298,67726.0,67692.0,0.014782]
[1770449633119,0.53820298,67724.0,67688.0,0.5523247]
[1770449633312,0.53820298,67724.0,67690.0,0.014783]
[1770449633814,0.53820298,67724.0,67693.0,0.5523237]
[1770449634616,0.53820298,67724.0,67693.0,0.5522737]
[1770449635616,0.53820298,67724.0,67696.0,0.5523227]
[1770449635819,0.53820298,67724.0,67696.0,0.5375417]
[1770449637609,0.014776,67720.0,67688.0,1.4931417]
[1770449637816,0.53820298,67721.0,67689.0,0.5375417]
[1770449639018,0.12955691,67721.0,67698.0,0.5375417]
[1770449639312,0.53820298,67731.0,67702.0,0.5523217]
[1770449639515,0.53820298,67731.0,67702.0,0.5375417]
[1770449639816,0.13337455,67735.0,67714.0,0.5375417]
[1770449640011,0.53820298,67758.0,67730.0,0.5523157]
[1770449640211,0.13257438,67766.0,67731.0,0.5375417]
[1770449640411,0.53820298,67779.0,67734.0,0.5375417]
[1770449640607,0.53820298,67775.0,67741.0,0.5375417]
[1770449640806,0.55296698,67775.0,67741.0,0.5045417]
[1770449641007,0.53820298,67767.0,67736.0,0.95572]
[1770449641213,0.53820298,67774.0,67739.0,0.5375417]
[1770449641518,0.53820298,67774.0,67741.0,0.5523137]
[1770449641720,0.53820298,67774.0,67745.0,0.5523127]
[1770449642015,0.53820298,67774.0,67745.0,0.5375417]
[1770449642514,0.53820298,67751.0,67714.0,0.38201828]
[1770449642712,0.53820298,67748.0,67712.0,0.0002]
[1770449642911,0.53820298,67748.0,67716.0,0.014777]
[1770449643110,0.53820298,67748.0,67719.0,0.5523177]
[1770449643515,0.014763,67780.0,67709.0,0.5375417]
[1770449643516,0.53820298,67744.0,67709.0,0.5375417]
[1770449643708,0.55297398,67744.0,67715.0,0.001]
[1770449644024,0.53820298,67744.0,67715.0,0.001]
[1770449644212,0.014771,67743.0,67715.0,0.001]
[1770449644407,0.53820298,67742.0,67715.0,0.001]
[1770449644713,0.53820298,67739.0,67715.0,0.001]
[1770449645113,0.53820298,67739.0,67719.0,0.001]
[1770449645812,0.53820298,67739.0,67708.0,0.5375417]
[1770449646911,0.014767,67763.0,67704.0,0.94236]
[1770449646912,0.54080764,67731.0,67704.0,0.94236]
[1770449647314,0.54080764,67731.0,67693.0,0.014782]
[1770449647315,0.54080764,67727.0,67693.0,0.014782]
[1770449647515,0.54080764,67727.0,67692.0,0.014782]
[1770449648121,0.55558264,67727.0,67692.0,0.014782]
[1770449648618,0.54080764,67714.0,67676.0,0.56356119]
[1770449648817,0.014773,67737.0,67665.0,0.0002]
[1770449648818,0.54080764,67704.0,67670.0,0.95556]
[1770449649010,0.55972553,67698.0,67670.0,0.95556]
[1770449649212,0.55972553,67693.0,67665.0,0.0002]
[1770449649420,0.55972553,67691.0,67665.0,0.0002]
[1770449649617,0.014785,67682.0,67651.0,0.00014291]
[1770449649816,0.55972553,67681.0,67646.0,0.0002]
[1770449650016,0.55972553,67686.0,67646.0,0.57861131]
[1770449650220,0.55972553,67686.0,67647.0,0.014792]
[1770449650422,0.55972553,67684.0,67646.0,0.57861131]
[1770449650619,0.55972553,67677.0,67646.0,0.0002]
[1770449650823,0.13243294,67684.0,67650.0,0.57841131]
[1770449651012,0.55972553,67690.0,67653.0,0.57841131]
[1770449651215,0.55972553,67681.0,67644.0,0.0002]
[1770449651511,0.55972553,67679.0,67648.0,0.014792]
[1770449651709,0.55972553,67679.0,67648.0,0.59320331]
[1770449652219,0.01591473,67667.0,67652.0,0.57841131]
[1770449652416,0.13346369,67681.0,67652.0,0.57841131]
[1770449652722,0.55972553,67681.0,67652.0,0.57841131]
[1770449653110,0.55972553,67681.0,67657.0,0.01479]
[1770449653319,0.55972553,67690.0,67652.0,0.59320231]